fUST/lending_fUST_20251020
["ID","MTS","AMOUNT","RATE_DAILY","PERIOD"]
[391860497,1760931038787,-1594.95165506,0.00024773,2]
[391860498,1760931038799,-1814.82813593,0.00024773,2]
[391860499,1760931038816,-654.21663662,0.00024773,2]
[391860500,1760931038832,-8948.09282019,0.00024773,2]
[391860501,1760931038843,-9311.79522909,0.00024773,2]
[391860502,1760931038852,-471.73289945,0.00024773,2]
[391860503,1760931038862,-1000.0,0.000248,2]
[391860504,1760931038958,-500.0,0.000248,2]
[391860505,1760931038971,-500.0,0.000248,2]
[391860506,1760931038980,-500.0,0.000248,2]
[391860507,1760931038990,-500.0,0.000248,2]
[391860508,1760931039000,-500.0,0.000248,2]
[391860509,1760931039010,-500.0,0.000248,2]
[391860510,1760931039020,-500.0,0.000248,2]
[391860511,1760931039029,-500.0,0.000248,2]
[391860512,1760931039038,-500.0,0.000248,2]
[391860513,1760931039047,-500.0,0.000248,2]
[391860514,1760931039056,-536.11150818,0.000248,2]
[391860515,1760931039066,-500.0,0.000248,2]
[391860516,1760931039075,-500.0,0.000248,2]
[391860517,1760931039085,-185.76138126,0.000248,2]
[391860518,1760931039094,-500.0,0.000248,2]
[391860519,1760931039104,-500.0,0.000248,2]
[391860520,1760931039114,-500.0,0.000248,2]
[391860521,1760931039124,-500.0,0.000248,2]
[391860522,1760931039134,-565.05766836,0.000248,2]
[391860523,1760931039144,-500.0,0.000248,2]
[391860524,1760931039154,-500.0,0.000248,2]
[391860525,1760931039163,-500.0,0.000248,2]
[391860526,1760931039173,-500.0,0.000248,2]
[391860527,1760931039182,-500.0,0.000248,2]
[391860528,1760931039192,-430.27778596,0.000248,2]
[391860529,1760931039201,-500.0,0.000248,2]
[391860530,1760931039212,-500.0,0.000248,2]
[391860531,1760931039228,-500.0,0.000248,2]
[391860532,1760931039238,-384.02819522,0.000248,2]
[391860533,1760931039247,-367.49643885,0.000248,2]
[391860534,1760931039258,-500.0,0.000248,2]
[391860535,1760931039267,-500.0,0.000248,2]
[391860536,1760931039277,-500.0,0.000248,2]
[391860537,1760931039286,-500.0,0.000248,2]
[391860538,1760931039295,-500.0,0.000248,2]
[391860539,1760931039305,-500.0,0.000248,2]
[391860540,1760931039315,-500.0,0.000248,2]
[391860541,1760931039324,-500.0,0.000248,2]
[391860542,1760931039334,-500.0,0.000248,2]
[391860543,1760931039343,-500.0,0.000248,2]
[391860544,1760931039352,-500.0,0.000248,2]
[391860545,1760931039362,-500.0,0.000248,2]
[391860546,1760931039371,-500.0,0.000248,2]
[391860547,1760931039381,-500.0,0.000248,2]
[391860548,1760931039391,-500.0,0.000248,2]
[391860549,1760931039400,-500.0,0.000248,2]
[391860550,1760931039410,-500.0,0.000248,2]
[391860551,1760931039420,-500.0,0.000248,2]
[391860552,1760931039430,-500.0,0.000248,2]
[391860553,1760931039439,-500.0,0.000248,2]
[391860554,1760931039448,-612.75769542,0.000248,2]
[391860555,1760931039457,-500.0,0.000248,2]
[391860556,1760931039467,-500.0,0.000248,2]
[391860557,1760931039476,-500.0,0.000248,2]
[391860558,1760931039485,-500.0,0.000248,2]
[391860559,1760931039494,-500.0,0.000248,2]
[391860560,1760931039503,-500.0,0.000248,2]
[391860561,1760931039512,-500.0,0.000248,2]
[391860562,1760931039522,-500.0,0.000248,2]
[391860563,1760931039531,-500.0,0.000248,2]
[391860564,1760931039540,-500.0,0.000248,2]
[391860565,1760931039550,-500.0,0.000248,2]
[391860566,1760931039559,-500.0,0.000248,2]
[391860567,1760931039568,-500.0,0.000248,2]
[391860568,1760931039577,-500.0,0.000248,2]
[391860569,1760931039587,-500.0,0.000248,2]
[391860570,1760931039596,-500.0,0.000248,2]
[391860571,1760931039605,-500.0,0.000248,2]
[391860572,1760931039614,-500.0,0.000248,2]
[391860573,1760931039623,-500.0,0.000248,2]
[391860574,1760931039633,-500.0,0.000248,2]
[391860575,1760931039642,-500.0,0.000248,2]
[391860576,1760931039651,-500.0,0.000248,2]
[391860577,1760931039661,-500.0,0.000248,2]
[391860578,1760931039671,-500.0,0.000248,2]
[391860579,1760931039680,-500.0,0.000248,2]
[391860580,1760931039689,-500.0,0.000248,2]
[391860581,1760931039701,-500.0,0.000248,2]
[391860582,1760931039711,-500.0,0.000248,2]
[391860583,1760931039722,-500.0,0.000248,2]
[391860584,1760931039731,-500.0,0.000248,2]
[391860585,1760931039740,-500.0,0.000248,2]
[391860586,1760931039751,-500.0,0.000248,2]
[391860587,1760931039762,-500.0,0.000248,2]
[391860588,1760931039777,-500.0,0.000248,2]
[391860589,1760931039786,-553.0254794,0.000248,2]
[391860590,1760931039796,-500.0,0.000248,2]
[391860591,1760931039807,-500.0,0.000248,2]
[391860592,1760931039817,-500.0,0.000248,2]
[391860593,1760931039826,-500.0,0.000248,2]
[391860594,1760931039836,-500.0,0.000248,2]
[391860595,1760931039848,-500.0,0.00024801,2]
[391860596,1760931039857,-13012.08924779,0.00024802,2]
[391860597,1760931039866,-13012.08924779,0.00024832,2]
[391860598,1760931039876,-151.0,0.00024855,2]
[391860599,1760931039941,-151.0,0.00024855,2]
[391860600,1760931039956,-151.0,0.00024855,2]
[391860601,1760931039966,-151.0,0.00024855,2]
[391860602,1760931039976,-151.0,0.00024855,2]
[391860603,1760931039985,-151.0,0.00024855,2]
[391860604,1760931039996,-151.0,0.00024855,2]
[391860605,1760931040006,-267.29546985,0.00024855,2]
[391860606,1760931040018,-287.11251189,0.0002486,2]
[391860607,1760931040029,-293.97324706,0.0002486,2]
[391860608,1760931040038,-613.10051676,0.0002486,2]
[391860609,1760931040047,-13012.08924779,0.00024861,2]
[391860610,1760931040057,-178.15124216,0.00024867,2]
[391860611,1760931040066,-370000.0,0.0002487,2]
[391860612,1760931040076,-322.0,0.00024872,2]
[391860613,1760931040086,-500.0,0.00024873,2]
[391860614,1760931040096,-1372.08735912,0.00024874,2]
[391860615,1760931040106,-13012.08924779,0.0002489,2]
[391860616,1760931040117,-151.0,0.000249,8]
[391860617,1760931040126,-365188.921165,0.000249,2]
[391860618,1760931040136,-151.0,0.000249,7]
[391860619,1760931040147,-692.605182,0.000249,7]
[391860620,1760931040158,-692.605182,0.000249,7]
[391860621,1760931040167,-692.605182,0.000249,7]
[391860622,1760931040177,-279.203234,0.000249,7]
[391860623,1760931040186,-692.605182,0.000249,7]
[391860624,1760931040195,-279.203234,0.000249,7]
[391860625,1760931040205,-151.0,0.000249,7]
[391860626,1760931040214,-151.611291,0.000249,2]
[391860627,1760931040224,-279.203234,0.000249,7]
[391860628,1760931040234,-279.203234,0.000249,7]
[391860629,1760931040243,-151.0,0.000249,7]
[391860630,1760931040253,-151.0,0.000249,7]
[391860631,1760931040263,-151.0,0.000249,7]
[391860632,1760931040272,-151.0,0.000249,7]
[391860633,1760931040281,-151.0,0.000249,7]
[391860634,1760931040291,-151.0,0.000249,7]
[391860635,1760931040300,-151.0,0.000249,7]
[391860636,1760931040310,-151.0,0.000249,7]
[391860637,1760931040319,-151.0,0.000249,7]
[391860638,1760931040329,-151.0,0.000249,7]
[391860639,1760931040338,-153.987082,0.000249,7]
[391860640,1760931040347,-152.684816,0.000249,7]
[391860641,1760931040356,-151.0,0.000249,7]
[391860642,1760931040366,-25453.8293168,0.00024923,2]
[391860643,1760931040375,-194.4227659,0.00024935,2]
[391860644,1760931040396,-151.0,0.00024957,7]
[391860645,1760931040413,-152.094476,0.00024957,7]
[391860646,1760931040431,-151.0,0.00024957,7]
[391860647,1760931040451,-527.258796,0.00024957,7]
[391860650,1760931040471,-527.258796,0.00024957,7]
[391860652,1760931040488,-527.258796,0.00024957,7]
[391860653,1760931040506,-527.258796,0.00024957,7]
[391860654,1760931040521,-157.315929,0.00024957,7]
[391860655,1760931040538,-151.0,0.00024957,7]
[391860656,1760931040557,-152.526428,0.00024957,7]
[391860657,1760931040576,-912.30609,0.00024957,7]
[391860658,1760931040588,-168.305738,0.00024957,7]
[391860659,1760931040607,-912.30609,0.00024957,7]
[391860662,1760931040623,-912.30609,0.00024957,7]
[391860665,1760931040639,-912.30609,0.00024957,7]
[391860667,1760931040652,-151.891348,0.00024957,7]
[391860670,1760931040666,-151.0,0.00024957,7]
[391860672,1760931040680,-151.0,0.00024957,7]
[391860675,1760931040696,-151.0,0.00024957,7]
[391860677,1760931040710,-151.0,0.00024957,7]
[391860679,1760931040725,-151.0,0.00024957,7]
[391860682,1760931040740,-151.0,0.00024957,7]
[391860684,1760931040754,-151.0,0.00024957,7]
[391860687,1760931040771,-151.0,0.00024957,7]
[391860689,1760931040785,-151.0,0.00024957,7]
[391860692,1760931040799,-151.0,0.00024957,7]
[391860694,1760931040815,-204.36683892,0.00024957,2]
[391860697,1760931040829,-1369.7846365,0.00024958,2]
[391860699,1760931040845,-2079.56,0.0002496,3]
[391860702,1760931040858,-1308.37,0.0002496,3]
[391860704,1760931040872,-788.47,0.0002496,3]
[391860707,1760931040887,-421.9,0.0002496,3]
[391860709,1760931040901,-210.95,0.0002496,3]
[391860712,1760931040915,-632.87,0.0002496,3]
[391860714,1760931040928,-153.371166,0.0002496,7]
[391860717,1760931040943,-73051.9614436,0.00024967,2]
[391860719,1760931040957,-151.0,0.00024967,7]
[391860721,1760931040971,-151.0,0.00024967,7]
[391860724,1760931040986,-151.0,0.00024967,7]
[391860727,1760931041008,-151.0,0.00024967,7]
[391860729,1760931041023,-207.224327,0.00024967,7]
[391860732,1760931041038,-155.946386,0.00024967,7]
[391860734,1760931041052,-157.2685,0.00024967,7]
[391860745,1760931041066,-151.0,0.00024967,7]
[391860748,1760931041167,-527.258796,0.00024967,7]
[391860749,1760931041177,-527.258796,0.00024967,7]
[391860750,1760931041187,-527.258796,0.00024967,7]
[391860751,1760931041196,-527.258796,0.00024967,7]
[391860752,1760931041205,-274.89552,0.00024967,7]
[391860753,1760931041215,-912.30609,0.00024967,7]
[391860754,1760931041225,-912.30609,0.00024967,7]
[391860755,1760931041234,-912.30609,0.00024967,7]
[391860756,1760931041244,-912.30609,0.00024967,7]
[391860757,1760931041255,-151.0,0.00024967,7]
[391860758,1760931041266,-151.0,0.00024967,7]
[391860759,1760931041277,-153.28037576,0.00024967,7]
[391860760,1760931041286,-153.570476,0.00024967,7]
[391860761,1760931041297,-151.0,0.00024967,7]
[391860762,1760931041307,-151.0,0.00024967,7]
[391860763,1760931041317,-151.0,0.00024967,7]
[391860764,1760931041326,-151.0,0.00024967,7]
[391860765,1760931041335,-151.0,0.00024967,7]
[391860766,1760931041344,-151.0,0.00024967,7]
[391860767,1760931041353,-154.300907,0.00024967,7]
[391860768,1760931041362,-692.605182,0.00024967,7]
[391860769,1760931041372,-692.605182,0.00024967,7]
[391860770,1760931041381,-692.605182,0.00024967,7]
[391860771,1760931041391,-279.203234,0.00024967,7]
[391860772,1760931041400,-692.605182,0.00024967,7]
[391860773,1760931041409,-279.203234,0.00024967,7]
[391860774,1760931041418,-151.0,0.00024967,7]
[391860775,1760931041427,-279.203234,0.00024967,7]
[391860776,1760931041436,-279.203234,0.00024967,7]
[391860777,1760931041445,-151.0,0.00024967,7]
[391860778,1760931041455,-256.72816,0.00024967,7]
[391860779,1760931041465,-249.018806,0.00024967,7]
[391860780,1760931041474,-155.103024,0.00024967,7]
[391860781,1760931041483,-151.0,0.00024967,7]
[391860782,1760931041493,-152.094428,0.00024967,7]
[391860783,1760931041503,-151.0,0.00024967,7]
[391860784,1760931041513,-151.0,0.00024967,7]
[391860785,1760931041522,-151.0,0.00024967,7]
[391860786,1760931041531,-179.362083,0.00024967,7]
[391860787,1760931041542,-178.386515,0.00024967,7]
[391860788,1760931041551,-500.0,0.00024969,2]
[391860789,1760931041560,-151.0,0.0002497,2]
[391860790,1760931041570,-151.0,0.0002497,7]
[391860791,1760931041581,-151.0,0.0002497,7]
[391860792,1760931041591,-151.0,0.0002497,7]
[391860793,1760931041601,-500.0,0.0002497,2]
[391860794,1760931041611,-500.0,0.0002497,2]
[391860795,1760931041621,-500.0,0.0002497,2]
[391860796,1760931041630,-500.0,0.0002497,2]
[391860797,1760931041641,-152.469033,0.0002497,7]
[391860798,1760931041651,-527.258796,0.0002497,7]
[391860799,1760931041661,-527.258796,0.0002497,7]
[391860800,1760931041671,-527.258796,0.0002497,7]
[391860801,1760931041680,-527.258796,0.0002497,7]
[391860802,1760931041690,-912.30609,0.0002497,7]
[391860803,1760931041699,-912.30609,0.0002497,7]
[391860804,1760931041708,-912.30609,0.0002497,7]
[391860805,1760931041718,-912.30609,0.0002497,7]
[391860806,1760931041727,-151.0,0.0002497,7]
[391860807,1760931041737,-151.0,0.0002497,7]
[391860808,1760931041746,-160.758298,0.0002497,7]
[391860809,1760931041756,-151.0,0.0002497,7]
[391860810,1760931041769,-151.0,0.0002497,7]
[391860811,1760931041779,-151.0,0.0002497,7]
[391860812,1760931041788,-201.116482,0.0002497,7]
[391860813,1760931041799,-500.0,0.00024973,2]
[391860814,1760931041808,-512.24732739,0.00024973,2]
[391860815,1760931041818,-158.05537951,0.00024973,2]
[391860816,1760931041827,-500.0,0.00024973,2]
[391860817,1760931041838,-150.86007013,0.00024973,2]
[391860818,1760931041847,-500.0,0.00024973,2]
[391860819,1760931041856,-500.0,0.00024973,2]
[391860820,1760931041866,-500.0,0.00024973,2]
[391860821,1760931041875,-500.0,0.00024978,2]
[391860822,1760931041884,-500.0,0.0002498,2]
[391860823,1760931041894,-500.0,0.0002498,2]
[391860824,1760931041904,-500.0,0.0002498,2]
[391860825,1760931041914,-500.0,0.0002498,2]
[391860826,1760931041923,-500.0,0.0002498,2]
[391860827,1760931041933,-500.0,0.0002498,2]
[391860828,1760931041943,-1343.257489,0.0002498,7]
[391860829,1760931041953,-1343.257489,0.0002498,7]
[391860830,1760931041963,-1343.257489,0.0002498,7]
[391860831,1760931041972,-1343.257489,0.0002498,7]
[391860832,1760931041983,-153.548905,0.0002498,7]
[391860833,1760931041992,-1000.0,0.0002498,2]
[391860834,1760931042003,-1000.0,0.0002498,2]
[391860835,1760931042012,-1000.0,0.0002498,2]
[391860836,1760931042023,-1000.0,0.0002498,2]
[391860837,1760931042033,-1000.0,0.0002498,2]
[391860838,1760931042043,-1000.0,0.0002498,2]
[391860839,1760931042053,-1000.0,0.0002498,2]
[391860840,1760931042063,-1000.0,0.0002498,2]
[391860841,1760931042073,-1000.0,0.0002498,2]
[391860842,1760931042082,-198.306705,0.0002498,2]
[391860843,1760931042092,-155.708742,0.0002498,7]
[391860844,1760931042102,-152.833167,0.0002498,7]
[391860845,1760931042112,-151.0,0.0002498,7]
[391860846,1760931042122,-222.142266,0.0002498,7]
[391860847,1760931042133,-151.0,0.0002498,7]
[391860848,1760931042143,-151.0,0.0002498,7]
[391860849,1760931042153,-151.0,0.0002498,7]
[391860850,1760931042163,-151.0,0.0002498,7]
[391860851,1760931042173,-232.951407,0.0002498,7]
[391860852,1760931042183,-151.54554055,0.0002498,7]
[391860853,1760931042192,-500.128155,0.0002498,7]
[391860854,1760931042203,-500.128155,0.0002498,7]
[391860855,1760931042214,-151.0,0.0002498,7]
[391860856,1760931042223,-500.128155,0.0002498,7]
[391860857,1760931042233,-500.128155,0.0002498,7]
[391860858,1760931042244,-151.0,0.0002498,7]
[391860859,1760931042257,-502.20331826,0.0002498,2]
[391860860,1760931042268,-151.0,0.0002498,7]
[391860861,1760931042277,-151.0,0.0002498,7]
[391860862,1760931042288,-151.0,0.0002498,7]
[391860863,1760931042297,-157.984734,0.0002498,7]
[391860864,1760931042308,-500.0,0.0002498,2]
[391860865,1760931042318,-500.0,0.0002498,2]
[391860866,1760931042327,-500.0,0.0002498,2]
[391860867,1760931042402,-500.0,0.0002498,2]
[391860868,1760931042412,-500.0,0.0002498,2]
[391860869,1760931042422,-500.0,0.0002498,2]
[391860870,1760931042431,-500.0,0.0002498,2]
[391860871,1760931042441,-500.0,0.0002498,2]
[391860872,1760931042451,-556.79662483,0.0002498,2]
[391860873,1760931042461,-330.0,0.0002498,3]
[391860874,1760931042471,-330.0,0.0002498,3]
[391860875,1760931042480,-330.0,0.0002498,3]
[391860876,1760931042490,-330.0,0.0002498,3]
[391860877,1760931042500,-330.0,0.0002498,3]
[391860878,1760931042510,-306.55025838,0.0002498,2]
[391860879,1760931042519,-151.43760942,0.00024985,2]
[391860880,1760931042529,-500.0,0.00024989,2]
[391860881,1760931042538,-500.0,0.00024989,2]
[391860882,1760931042549,-500.0,0.00024989,2]
[391860883,1760931042558,-500.0,0.00024989,2]
[391860884,1760931042568,-339.20102539,0.00024989,2]
[391860885,1760931042578,-1000.0,0.00024989,2]
[391860886,1760931042586,-1000.0,0.00024989,2]
[391860887,1760931042595,-1000.0,0.00024989,2]
[391860888,1760931042604,-1000.0,0.00024989,2]
[391860889,1760931042614,-1000.0,0.00024989,2]
[391860890,1760931042623,-1000.0,0.00024989,2]
[391860891,1760931042632,-508.27056489,0.00024989,2]
[391860892,1760931042641,-151.0,0.0002499,2]
[391860893,1760931042650,-151.0,0.0002499,7]
[391860894,1760931042659,-151.0,0.0002499,7]
[391860895,1760931042669,-151.0,0.0002499,7]
[391860896,1760931042679,-152.0,0.0002499,3]
[391860897,1760931042688,-152.0,0.0002499,3]
[391860898,1760931042697,-330.0,0.0002499,3]
[391860899,1760931042707,-152.0,0.0002499,3]
[391860900,1760931042716,-330.0,0.0002499,3]
[391860901,1760931042726,-152.0,0.0002499,3]
[391860902,1760931042735,-330.0,0.0002499,3]
[391860903,1760931042744,-152.0,0.0002499,3]
[391860904,1760931042753,-151.0,0.0002499,7]
[391860905,1760931042763,-152.0,0.0002499,3]
[391860906,1760931042776,-152.0,0.0002499,3]
[391860907,1760931042786,-152.0,0.0002499,3]
[391860908,1760931042796,-152.0,0.0002499,3]
[391860909,1760931042805,-152.0,0.0002499,3]
[391860910,1760931042816,-151.0,0.0002499,7]
[391860911,1760931042825,-152.0,0.0002499,3]
[391860912,1760931042835,-152.0,0.0002499,3]
[391860913,1760931042845,-152.0,0.0002499,3]
[391860914,1760931042854,-152.0,0.0002499,3]
[391860915,1760931042863,-152.0,0.0002499,3]
[391860916,1760931042872,-280.66543272,0.0002499,3]
[391860917,1760931042882,-152.0,0.0002499,3]
[391860918,1760931042891,-152.0,0.0002499,3]
[391860919,1760931042902,-152.0,0.0002499,3]
[391860920,1760931042911,-152.0,0.0002499,3]
[391860921,1760931042921,-152.0,0.0002499,3]
[391860922,1760931042930,-1000.0,0.0002499,2]
[391860923,1760931042941,-1000.0,0.0002499,2]
[391860924,1760931042950,-1000.0,0.0002499,2]
[391860925,1760931042959,-1000.0,0.0002499,2]
[391860926,1760931042969,-1000.0,0.0002499,2]
[391860927,1760931042978,-1000.0,0.0002499,2]
[391860928,1760931042988,-1000.0,0.0002499,2]
[391860929,1760931042997,-1000.0,0.0002499,2]
[391860930,1760931043007,-1000.0,0.0002499,2]
[391860931,1760931043016,-726.390722,0.0002499,2]
[391860932,1760931043026,-527.258796,0.0002499,7]
[391860933,1760931043035,-527.258796,0.0002499,7]
[391860934,1760931043044,-527.258796,0.0002499,7]
[391860935,1760931043054,-527.258796,0.0002499,7]
[391860936,1760931043063,-912.30609,0.0002499,7]
[391860937,1760931043072,-912.30609,0.0002499,7]
[391860938,1760931043082,-912.30609,0.0002499,7]
[391860939,1760931043092,-912.30609,0.0002499,7]
[391860940,1760931043101,-151.0,0.0002499,7]
[391860941,1760931043110,-151.0,0.0002499,7]
[391860942,1760931043120,-100000.0,0.0002499,2]
[391860943,1760931043129,-151.0,0.0002499,7]
[391860945,1760931043139,-151.0,0.0002499,7]
[391860947,1760931043149,-151.0,0.0002499,7]
[391860949,1760931043160,-692.605182,0.0002499,7]
[391860950,1760931043171,-692.605182,0.0002499,7]
[391860951,1760931043181,-692.605182,0.0002499,7]
[391860952,1760931043191,-279.203234,0.0002499,7]
[391860953,1760931043200,-692.605182,0.0002499,7]
[391860954,1760931043210,-279.203234,0.0002499,7]
[391860955,1760931043219,-154.325939,0.0002499,7]
[391860956,1760931043229,-279.203234,0.0002499,7]
[391860957,1760931043239,-279.203234,0.0002499,7]
[391860958,1760931043250,-151.0,0.0002499,7]
[391860959,1760931043261,-151.0,0.0002499,7]
[391860960,1760931043271,-151.0,0.0002499,7]
[391860961,1760931043280,-151.0,0.0002499,7]
[391860962,1760931043289,-151.0,0.0002499,7]
[391860963,1760931043299,-181.317458,0.0002499,7]
[391860964,1760931043308,-151.0,0.0002499,7]
[391860965,1760931043317,-151.0,0.0002499,7]
[391860966,1760931043327,-200.0,0.00025,5]
[391860967,1760931043336,-402.86590842,0.00025,7]
[391860968,1760931043345,-151.0,0.00025,7]
[391860969,1760931043354,-151.0,0.00025,7]
[391860970,1760931043364,-48830.12,0.00025,7]
[391860971,1760931043373,-151.0,0.00025,7]
[391860972,1760931043382,-151.0,0.00025,7]
[391860973,1760931043391,-151.0,0.00025,7]
[391860974,1760931043401,-151.0,0.00025,7]
[391860975,1760931043411,-151.0,0.00025,7]
[391860976,1760931043420,-151.0,0.00025,7]
[391860977,1760931043430,-1343.257489,0.00025,7]
[391860978,1760931043440,-1343.257489,0.00025,7]
[391860979,1760931043511,-1343.257489,0.00025,7]
[391860980,1760931043522,-1343.257489,0.00025,7]
[391860981,1760931043532,-1343.257489,0.00025,7]
[391860982,1760931043543,-1343.257489,0.00025,7]
[391860983,1760931043553,-1343.257489,0.00025,7]
[391860984,1760931043562,-1343.257489,0.00025,7]
[391860985,1760931043571,-402.9601108,0.00025,3]
[391860986,1760931043583,-151.0,0.00025,7]
[391860987,1760931043591,-151.0,0.00025,7]
[391860988,1760931043600,-151.0,0.00025,7]
[391860989,1760931043610,-151.0,0.00025,7]
[391860990,1760931043619,-402.9601108,0.00025,7]
[391860991,1760931043628,-500.128155,0.00025,7]
[391860992,1760931043639,-500.128155,0.00025,7]
[391860993,1760931043649,-151.0,0.00025,7]
[391860994,1760931043659,-500.128155,0.00025,7]
[391860995,1760931043668,-500.128155,0.00025,7]
[391860996,1760931043677,-152.454275,0.00025,7]
[391860997,1760931043687,-151.00000045,0.00025,2]
[391860998,1760931043696,-153.367777,0.00025,7]
[391860999,1760931043705,-151.0,0.00025,7]
[391861000,1760931043715,-151.0,0.00025,7]
[391861001,1760931043725,-151.0,0.00025,7]
[391861002,1760931043735,-527.258796,0.00025,7]
[391861003,1760931043744,-527.258796,0.00025,7]
[391861004,1760931043756,-527.258796,0.00025,7]
[391861005,1760931043769,-527.258791,0.00025,7]
[391861006,1760931043778,-1608.22083128,0.00025,2]
[391861007,1760931043788,-1283.90193,0.00025,3]
[391861008,1760931043798,-362.87230939,0.00025,2]
[391861009,1760931043808,-912.30609,0.00025,7]
[391861010,1760931043818,-912.30609,0.00025,7]
[391861011,1760931043827,-912.30609,0.00025,7]
[391861012,1760931043839,-912.306081,0.00025,7]
[391861013,1760931043849,-468.81869124,0.00025,5]
[391861014,1760931043859,-151.0,0.00025,7]
[391861015,1760931043869,-290.377402,0.00025,7]
[391861016,1760931043878,-151.0,0.00025,7]
[391861017,1760931043888,-151.0,0.00025,7]
[391861018,1760931043899,-154.831099,0.00025,7]
[391861019,1760931043910,-692.605182,0.00025,7]
[391861020,1760931043920,-692.605182,0.00025,7]
[391861021,1760931043930,-692.605182,0.00025,7]
[391861022,1760931043940,-279.203234,0.00025,7]
[391861023,1760931043949,-692.605182,0.00025,7]
[391861024,1760931043960,-279.203234,0.00025,7]
[391861025,1760931043970,-279.203234,0.00025,7]
[391861026,1760931043979,-279.203234,0.00025,7]
[391861027,1760931043989,-151.0,0.00025,7]
[391861028,1760931043999,-151.0,0.00025,7]
[391861029,1760931044008,-151.0,0.00025,7]
[391861030,1760931044019,-402.9601108,0.00025,7]
[391861031,1760931044029,-500.0,0.00025075,2]
[391861032,1760931044039,-370.0,0.00025084,2]
[391861033,1760931044048,-269.71218776,0.00025196,2]
[391861034,1760931044058,-153.278836,0.00025213,7]
[391861035,1760931044068,-151.0,0.00025213,7]
[391861036,1760931044077,-151.0,0.00025213,7]
[391861037,1760931044087,-18818.2410205,0.00025213,2]
[391861038,1760931044095,-153.54459,0.00025285,7]
[391861039,1760931044105,-153.766329,0.00025285,7]
[391861040,1760931044114,-243.684069,0.00025285,7]
[391861041,1760931044123,-5000.0,0.00025295,2]
[391861042,1760931044132,-297.69698501,0.000253,2]
[391861043,1760931044141,-500.0,0.00025349,2]
[391861044,1760931044150,-478.0,0.00025368,2]
[391861045,1760931044159,-1372.08735912,0.00025371,2]
[391861046,1760931044168,-151.0,0.000254,13]
[391861047,1760931044177,-503.92601364,0.00025421,2]
[391861048,1760931044187,-1000.0,0.000255,2]
[391861049,1760931044196,-1000.0,0.00025521,2]
[391861050,1760931044206,-1000.0,0.00025521,2]
[391861051,1760931044215,-1000.0,0.00025521,2]
[391861052,1760931044225,-1000.0,0.00025521,2]
[391861053,1760931044234,-1000.0,0.00025521,2]
[391861054,1760931044243,-1372.08735912,0.00025558,2]
[391861055,1760931044252,-500.0,0.00025623,2]
[391861056,1760931044262,-974.25527578,0.00025644,3]
[391861057,1760931044272,-553.92291898,0.00025644,3]
[391861058,1760931044282,-21983.7419243,0.000258,2]
[391861059,1760931044292,-160.0,0.00025833,2]